[Event "Early-Titled-Tuesday-Blitz-October-24-2023"]
[Site "Chess.com"]
[Date "2023.10.24"]
[Round "11"]
[White "Kotofeyca"]
[Black "lluiss"]
[Result "1-0"]
[WhiteElo "2378"]
[BlackElo "2201"]
[TimeControl "180+1"]
[EndTime "10:03:17 PDT"]
[Termination "Kotofeyca won by checkmate"]

1. d4 {[%clk 0:03:00.9]} 1... Nf6 {[%clk 0:02:58.4]} 2. c4 {[%clk 0:03:01]} 2...
g6 {[%clk 0:02:55.7]} 3. f3 {[%clk 0:03:00.7]} 3... d5 {[%clk 0:02:55.3]} 4.
cxd5 {[%clk 0:03:01.6]} 4... Nxd5 {[%clk 0:02:55.6]} 5. e4 {[%clk 0:03:02.2]}
5... Nb6 {[%clk 0:02:56.1]} 6. Nc3 {[%clk 0:03:02.4]} 6... Bg7 {[%clk
0:02:55.5]} 7. Be3 {[%clk 0:03:02.9]} 7... O-O {[%clk 0:02:55.9]} 8. Qd2 {[%clk
0:03:03.4]} 8... Nc6 {[%clk 0:02:56.2]} 9. O-O-O {[%clk 0:03:03.7]} 9... Qd6
{[%clk 0:02:56.8]} 10. h4 {[%clk 0:02:59.4]} 10... Rd8 {[%clk 0:02:55.5]} 11. d5
{[%clk 0:02:58.5]} 11... Ne5 {[%clk 0:02:54.9]} 12. Qf2 {[%clk 0:02:20.8]} 12...
Nec4 {[%clk 0:02:27.8]} 13. Bc5 {[%clk 0:02:18.4]} 13... Qf4+ {[%clk 0:02:26.8]}
14. Kc2 {[%clk 0:01:56.2]} 14... Nxb2 {[%clk 0:02:26.6]} 15. Nge2 {[%clk
0:01:24.7]} 15... Nxd1 {[%clk 0:02:23.3]} 16. Kxd1 {[%clk 0:00:50.9]} 16... Qf6
{[%clk 0:02:14.3]} 17. g4 {[%clk 0:00:19.5]} 17... Na4 {[%clk 0:02:08.5]} 18.
Nxa4 {[%clk 0:00:15.2]} 18... Qa1+ {[%clk 0:02:07.4]} 19. Kd2 {[%clk 0:00:15.6]}
19... Qxa2+ {[%clk 0:02:07.7]} 20. Ke3 {[%clk 0:00:14.1]} 20... Qxa4 {[%clk
0:02:07]} 21. Kf4 {[%clk 0:00:14]} 21... e6 {[%clk 0:02:02.7]} 22. h5 {[%clk
0:00:12.6]} 22... exd5 {[%clk 0:02:02.5]} 23. hxg6 {[%clk 0:00:12.8]} 23... dxe4
{[%clk 0:01:14]} 24. gxf7+ {[%clk 0:00:12.1]} 24... Kxf7 {[%clk 0:01:10.8]} 25.
Rxh7 {[%clk 0:00:11.6]} 25... exf3+ {[%clk 0:01:09.7]} 26. Kxf3 {[%clk
0:00:11.9]} 26... Rd3+ {[%clk 0:00:55.7]} 27. Kg2+ {[%clk 0:00:11.5]} 27... Kg8
{[%clk 0:00:54.3]} 28. Rxg7+ {[%clk 0:00:11]} 28... Kxg7 {[%clk 0:00:54.6]} 29.
Qf8+ {[%clk 0:00:09.2]} 29... Kg6 {[%clk 0:00:54]} 30. Nf4+ {[%clk 0:00:08.9]}
30... Qxf4 {[%clk 0:00:31.3]} 31. Qxf4 {[%clk 0:00:08]} 31... Rd2+ {[%clk
0:00:32.2]} 32. Kg1 {[%clk 0:00:07.8]} 32... Rd1 {[%clk 0:00:26.9]} 33. Qe4+
{[%clk 0:00:07.2]} 33... Kg7 {[%clk 0:00:22.7]} 34. Bd4+ {[%clk 0:00:06.2]}
34... Kh6 {[%clk 0:00:21.1]} 35. Qf4+ {[%clk 0:00:05.4]} 35... Kh7 {[%clk
0:00:20.1]} 36. Qf7+ {[%clk 0:00:05]} 36... Kh6 {[%clk 0:00:19.8]} 37. Bg7+
{[%clk 0:00:04.7]} 37... Kg5 {[%clk 0:00:16.1]} 38. Bf6+ {[%clk 0:00:05.6]}
38... Kxg4 {[%clk 0:00:15.2]} 39. Qg6+ {[%clk 0:00:06.1]} 39... Kf4 {[%clk
0:00:14.6]} 40. Qg5+ {[%clk 0:00:06.4]} 40... Ke4 {[%clk 0:00:14.4]} 41. Qe5+
{[%clk 0:00:06.5]} 41... Kf3 {[%clk 0:00:14.1]} 42. Qf5+ {[%clk 0:00:06.2]}
42... Ke3 {[%clk 0:00:11.2]} 43. Qe5+ {[%clk 0:00:06.2]} 43... Kd2 {[%clk
0:00:11]} 44. Qe2+ {[%clk 0:00:06.1]} 44... Kc1 {[%clk 0:00:07.6]} 45. Qb2#
{[%clk 0:00:06.2]} 1-0

[Event "Early-Titled-Tuesday-Blitz-October-24-2023"]
[Site "Chess.com"]
[Date "2023.10.24"]
[Round "11"]
[White "eljanov"]
[Black "MKlose11"]
[Result "0-1"]
[WhiteElo "2807"]
[BlackElo "2669"]
[TimeControl "180+1"]
[EndTime "10:03:24 PDT"]
[Termination "MKlose11 won on time"]

1. d4 {[%clk 0:03:00.9]} 1... Nf6 {[%clk 0:02:56.5]} 2. Bf4 {[%clk 0:03:00.3]}
2... c5 {[%clk 0:02:55.6]} 3. e3 {[%clk 0:02:59.6]} 3... b6 {[%clk 0:02:53.9]}
4. Nf3 {[%clk 0:02:54.3]} 4... g6 {[%clk 0:02:53.8]} 5. c3 {[%clk 0:02:49]} 5...
Bg7 {[%clk 0:02:52.5]} 6. h3 {[%clk 0:02:47]} 6... O-O {[%clk 0:02:52.2]} 7. Be2
{[%clk 0:02:45.6]} 7... Ba6 {[%clk 0:02:47.5]} 8. Bxa6 {[%clk 0:02:41.6]} 8...
Nxa6 {[%clk 0:02:48.4]} 9. O-O {[%clk 0:02:42.2]} 9... d6 {[%clk 0:02:44.8]} 10.
Qe2 {[%clk 0:02:40.2]} 10... Nc7 {[%clk 0:02:35.5]} 11. e4 {[%clk 0:02:40.5]}
11... cxd4 {[%clk 0:02:34.9]} 12. cxd4 {[%clk 0:02:40.5]} 12... d5 {[%clk
0:02:35.1]} 13. e5 {[%clk 0:02:35.4]} 13... Ne4 {[%clk 0:02:17.7]} 14. Nbd2
{[%clk 0:02:31.9]} 14... Ne6 {[%clk 0:02:10.4]} 15. Be3 {[%clk 0:02:30.2]} 15...
Rc8 {[%clk 0:02:06.6]} 16. Qd3 {[%clk 0:02:22.9]} 16... Nxd2 {[%clk 0:02:05.1]}
17. Qxd2 {[%clk 0:02:23.1]} 17... Qd7 {[%clk 0:01:59.5]} 18. Bh6 {[%clk
0:02:10.3]} 18... Bxh6 {[%clk 0:01:52.6]} 19. Qxh6 {[%clk 0:02:10.4]} 19... Rc2
{[%clk 0:01:53.4]} 20. b3 {[%clk 0:02:02.9]} 20... Rfc8 {[%clk 0:01:52.7]} 21.
a4 {[%clk 0:01:51.8]} 21... Rb2 {[%clk 0:01:50.2]} 22. Rab1 {[%clk 0:01:48.3]}
22... Rcc2 {[%clk 0:01:47.9]} 23. Rxb2 {[%clk 0:01:42.6]} 23... Rxb2 {[%clk
0:01:48.8]} 24. Qe3 {[%clk 0:01:42.6]} 24... Rc2 {[%clk 0:01:46.4]} 25. Rc1
{[%clk 0:01:35.3]} 25... Qc6 {[%clk 0:01:45.3]} 26. Rxc2 {[%clk 0:01:34.4]}
26... Qxc2 {[%clk 0:01:46.2]} 27. h4 {[%clk 0:01:30.8]} 27... h5 {[%clk
0:01:46.1]} 28. g3 {[%clk 0:01:31]} 28... Kg7 {[%clk 0:01:37.7]} 29. Kg2 {[%clk
0:01:31.3]} 29... Kf8 {[%clk 0:01:34.6]} 30. Ng1 {[%clk 0:01:30.4]} 30... Ng7
{[%clk 0:01:22.9]} 31. Nf3 {[%clk 0:00:43]} 31... Nf5 {[%clk 0:01:22.3]} 32. Qf4
{[%clk 0:00:43.4]} 32... Kg7 {[%clk 0:01:16.9]} 33. e6 {[%clk 0:00:38.9]} 33...
f6 {[%clk 0:01:12]} 34. b4 {[%clk 0:00:33.8]} 34... Qc6 {[%clk 0:01:07.8]} 35.
b5 {[%clk 0:00:33.2]} 35... Qxe6 {[%clk 0:01:07.7]} 36. Qd2 {[%clk 0:00:24.7]}
36... Qe4 {[%clk 0:01:07.5]} 37. Qc3 {[%clk 0:00:25]} 37... Kf7 {[%clk
0:01:03.3]} 38. Kf1 {[%clk 0:00:21.6]} 38... Nd6 {[%clk 0:01:01.4]} 39. Nd2
{[%clk 0:00:19.8]} 39... Qh1+ {[%clk 0:00:58.3]} 40. Ke2 {[%clk 0:00:20.2]}
40... Ne4 {[%clk 0:00:46.2]} 41. Qc7 {[%clk 0:00:16.8]} 41... Nxd2 {[%clk
0:00:42.1]} 42. Kxd2 {[%clk 0:00:17.2]} 42... Qe4 {[%clk 0:00:42]} 43. Qxa7
{[%clk 0:00:12.2]} 43... Qxd4+ {[%clk 0:00:41.9]} 44. Ke2 {[%clk 0:00:12.6]}
44... Qc4+ {[%clk 0:00:38.9]} 45. Kd2 {[%clk 0:00:10.4]} 45... Qc5 {[%clk
0:00:32.3]} 46. Ke2 {[%clk 0:00:09.3]} 46... d4 {[%clk 0:00:31.7]} 47. Qb7
{[%clk 0:00:03]} 47... Qc2+ {[%clk 0:00:27]} 48. Kf3 {[%clk 0:00:02]} 48... Qxa4
{[%clk 0:00:25.1]} 49. Qxb6 {[%clk 0:00:01.2]} 49... Qd1+ {[%clk 0:00:22.4]} 0-1

[Event "Early-Titled-Tuesday-Blitz-October-24-2023"]
[Site "Chess.com"]
[Date "2023.10.24"]
[Round "11"]
[White "lefonghua"]
[Black "Rud_Makarian"]
[Result "1-0"]
[WhiteElo "2734"]
[BlackElo "2964"]
[TimeControl "180+1"]
[EndTime "10:03:30 PDT"]
[Termination "lefonghua won by resignation"]

1. d4 {[%clk 0:03:00.9]} 1... Nf6 {[%clk 0:02:59.9]} 2. c4 {[%clk 0:03:01.1]}
2... e6 {[%clk 0:03:00.3]} 3. Nc3 {[%clk 0:03:01.4]} 3... d5 {[%clk 0:03:01]} 4.
cxd5 {[%clk 0:03:01.3]} 4... exd5 {[%clk 0:03:01.9]} 5. Bg5 {[%clk 0:03:01.6]}
5... c6 {[%clk 0:03:01.9]} 6. e3 {[%clk 0:03:01.9]} 6... h6 {[%clk 0:03:01.7]}
7. Bh4 {[%clk 0:03:01.9]} 7... Be7 {[%clk 0:03:02.3]} 8. Bd3 {[%clk 0:03:02.2]}
8... O-O {[%clk 0:03:03]} 9. Qc2 {[%clk 0:03:02.7]} 9... Re8 {[%clk 0:03:03.5]}
10. Nge2 {[%clk 0:03:03.1]} 10... Nbd7 {[%clk 0:03:02.6]} 11. O-O {[%clk
0:03:03.2]} 11... a5 {[%clk 0:03:03.2]} 12. f3 {[%clk 0:03:02.3]} 12... b5
{[%clk 0:03:02.3]} 13. a3 {[%clk 0:03:01.7]} 13... Bb7 {[%clk 0:02:49.6]} 14.
Bf2 {[%clk 0:03:00.2]} 14... Nb6 {[%clk 0:02:38.3]} 15. h3 {[%clk 0:02:54]}
15... b4 {[%clk 0:02:36.7]} 16. Na4 {[%clk 0:02:47.8]} 16... Nxa4 {[%clk
0:02:35.6]} 17. Qxa4 {[%clk 0:02:47.9]} 17... c5 {[%clk 0:02:35.8]} 18. dxc5
{[%clk 0:02:45.1]} 18... Bxc5 {[%clk 0:02:34.7]} 19. Nd4 {[%clk 0:02:44.2]}
19... Bxd4 {[%clk 0:02:22.8]} 20. exd4 {[%clk 0:02:44.1]} 20... Nh5 {[%clk
0:02:23.5]} 21. Rfe1 {[%clk 0:02:31.5]} 21... Rxe1+ {[%clk 0:02:00.6]} 22. Rxe1
{[%clk 0:02:32.4]} 22... Nf4 {[%clk 0:02:01]} 23. Bf1 {[%clk 0:02:32.2]} 23...
bxa3 {[%clk 0:01:59.5]} 24. bxa3 {[%clk 0:02:27.6]} 24... Ne6 {[%clk 0:01:58.6]}
25. Qb3 {[%clk 0:02:12.7]} 25... Ba6 {[%clk 0:01:51.3]} 26. Bxa6 {[%clk
0:02:09.4]} 26... Rxa6 {[%clk 0:01:52.2]} 27. Re5 {[%clk 0:02:06.8]} 27... Rd6
{[%clk 0:01:44.9]} 28. Qb5 {[%clk 0:02:01.2]} 28... Kh7 {[%clk 0:01:35]} 29. a4
{[%clk 0:01:50.9]} 29... g6 {[%clk 0:01:33.1]} 30. Kh2 {[%clk 0:01:40.2]} 30...
h5 {[%clk 0:01:25.4]} 31. h4 {[%clk 0:01:34.5]} 31... Ng7 {[%clk 0:01:18.2]} 32.
Qd3 {[%clk 0:01:24]} 32... Qd7 {[%clk 0:01:05.7]} 33. Bg3 {[%clk 0:01:15.5]}
33... Re6 {[%clk 0:01:00.3]} 34. Qb5 {[%clk 0:01:06.6]} 34... Qxb5 {[%clk
0:00:13.7]} 35. axb5 {[%clk 0:01:06.9]} 35... Rxe5 {[%clk 0:00:14.6]} 36. Bxe5
{[%clk 0:01:01.3]} 36... Ne6 {[%clk 0:00:15.3]} 37. Bf6 {[%clk 0:00:52.8]} 37...
Nf8 {[%clk 0:00:07.2]} 38. b6 {[%clk 0:00:50.3]} 38... Nd7 {[%clk 0:00:07.6]}
39. b7 {[%clk 0:00:50]} 39... a4 {[%clk 0:00:07.8]} 40. Be7 {[%clk 0:00:47.8]}
40... f6 {[%clk 0:00:06]} 41. Kg1 {[%clk 0:00:41.1]} 41... Kg7 {[%clk
0:00:05.9]} 42. Kf2 {[%clk 0:00:40.3]} 42... Kf7 {[%clk 0:00:06.2]} 43. Bb4
{[%clk 0:00:31.5]} 43... Ke8 {[%clk 0:00:05.3]} 44. Bd6 {[%clk 0:00:27.2]} 44...
g5 {[%clk 0:00:03.2]} 45. Ke2 {[%clk 0:00:27.5]} 45... Kf7 {[%clk 0:00:02.8]}
46. Kd3 {[%clk 0:00:25.7]} 46... Ke6 {[%clk 0:00:02.5]} 47. b8=Q {[%clk
0:00:25.5]} 47... Nxb8 {[%clk 0:00:02.7]} 48. Bxb8 {[%clk 0:00:26.4]} 48... gxh4
{[%clk 0:00:02.3]} 49. Kc3 {[%clk 0:00:25.9]} 49... Kf5 {[%clk 0:00:01.6]} 50.
Kb4 {[%clk 0:00:24.6]} 50... Kg5 {[%clk 0:00:02.1]} 51. Kxa4 {[%clk 0:00:23.7]}
51... h3 {[%clk 0:00:03]} 52. gxh3 {[%clk 0:00:23.3]} 52... Kh4 {[%clk
0:00:03.9]} 53. Kb4 {[%clk 0:00:21.8]} 53... Kxh3 {[%clk 0:00:04.6]} 54. Kc5
{[%clk 0:00:22.2]} 54... Kg2 {[%clk 0:00:05.3]} 55. Kxd5 {[%clk 0:00:22.2]}
55... Kxf3 {[%clk 0:00:05.9]} 56. Ke6 {[%clk 0:00:22.4]} 1-0

[Event "Early-Titled-Tuesday-Blitz-October-24-2023"]
[Site "Chess.com"]
[Date "2023.10.24"]
[Round "11"]
[White "meoluoi91"]
[Black "pedro_gines"]
[Result "0-1"]
[WhiteElo "2604"]
[BlackElo "2748"]
[TimeControl "180+1"]
[EndTime "10:03:31 PDT"]
[Termination "pedro_gines won on time"]

1. Nf3 {[%clk 0:03:00.4]} 1... a6 {[%clk 0:03:00.9]} 2. g3 {[%clk 0:02:58]} 2...
g6 {[%clk 0:03:00.8]} 3. Bg2 {[%clk 0:02:58.3]} 3... Bg7 {[%clk 0:03:01.7]} 4.
O-O {[%clk 0:02:58.5]} 4... d6 {[%clk 0:03:02.2]} 5. d4 {[%clk 0:02:53.7]} 5...
Nf6 {[%clk 0:03:02.8]} 6. a4 {[%clk 0:02:53.4]} 6... O-O {[%clk 0:03:02.9]} 7.
Re1 {[%clk 0:02:53.3]} 7... Nc6 {[%clk 0:03:02.2]} 8. d5 {[%clk 0:02:52.5]} 8...
Nb4 {[%clk 0:02:56.7]} 9. e4 {[%clk 0:02:47.8]} 9... a5 {[%clk 0:02:56.8]} 10.
Na3 {[%clk 0:02:41.3]} 10... e6 {[%clk 0:02:52.8]} 11. dxe6 {[%clk 0:02:30.9]}
11... Bxe6 {[%clk 0:02:53.7]} 12. h3 {[%clk 0:02:23.4]} 12... h6 {[%clk
0:02:49.9]} 13. Nd4 {[%clk 0:02:22.6]} 13... Bd7 {[%clk 0:02:49.1]} 14. Nab5
{[%clk 0:02:13.4]} 14... Re8 {[%clk 0:02:47.6]} 15. c3 {[%clk 0:01:51.6]} 15...
Na6 {[%clk 0:02:47.3]} 16. Qc2 {[%clk 0:01:49.7]} 16... Nc5 {[%clk 0:02:45.1]}
17. f3 {[%clk 0:01:38.6]} 17... Ne6 {[%clk 0:02:01.3]} 18. Ne2 {[%clk
0:01:30.9]} 18... Bxb5 {[%clk 0:01:56.4]} 19. axb5 {[%clk 0:01:30.3]} 19... d5
{[%clk 0:01:57]} 20. Nf4 {[%clk 0:01:05.5]} 20... dxe4 {[%clk 0:01:54.6]} 21.
fxe4 {[%clk 0:01:04.2]} 21... Qd6 {[%clk 0:01:33.9]} 22. Kh2 {[%clk 0:00:55.4]}
22... Qb6 {[%clk 0:01:29.7]} 23. c4 {[%clk 0:00:32.5]} 23... Nxf4 {[%clk
0:01:20.6]} 24. gxf4 {[%clk 0:00:26.9]} 24... Nh5 {[%clk 0:01:20.9]} 25. Be3
{[%clk 0:00:25.4]} 25... Bd4 {[%clk 0:01:20.2]} 26. Bd2 {[%clk 0:00:21.1]} 26...
Bf2 {[%clk 0:01:15.4]} 27. Rf1 {[%clk 0:00:20.4]} 27... Rad8 {[%clk 0:01:15.1]}
28. Rad1 {[%clk 0:00:16.1]} 28... a4 {[%clk 0:01:10.8]} 29. Bc1 {[%clk
0:00:16.1]} 29... Bg3+ {[%clk 0:01:10.1]} 30. Kh1 {[%clk 0:00:16.1]} 30... Rxd1
{[%clk 0:01:10.9]} 31. Qxd1 {[%clk 0:00:16.3]} 31... Qc5 {[%clk 0:01:11.3]} 32.
Qd5 {[%clk 0:00:15.3]} 32... Qb4 {[%clk 0:01:05.5]} 33. f5 {[%clk 0:00:15.5]}
33... Nf6 {[%clk 0:01:03.6]} 34. Qd3 {[%clk 0:00:13.7]} 34... Be5 {[%clk
0:01:02.9]} 35. fxg6 {[%clk 0:00:13.9]} 35... fxg6 {[%clk 0:01:03.7]} 36. Bxh6
{[%clk 0:00:14.1]} 36... Qxb2 {[%clk 0:01:03.9]} 37. Bg5 {[%clk 0:00:14.2]}
37... a3 {[%clk 0:01:02.4]} 38. Bxf6 {[%clk 0:00:14.3]} 38... Bxf6 {[%clk
0:01:03.2]} 39. e5 {[%clk 0:00:14.9]} 39... Qxe5 {[%clk 0:00:54.9]} 40. Qxg6+
{[%clk 0:00:15]} 40... Bg7 {[%clk 0:00:53.9]} 41. Bd5+ {[%clk 0:00:13.1]} 41...
Kh8 {[%clk 0:00:54.3]} 42. Qg4 {[%clk 0:00:12]} 42... Bf6 {[%clk 0:00:46.2]} 43.
Qg6 {[%clk 0:00:11.1]} 43... Bg7 {[%clk 0:00:40.1]} 44. Qg4 {[%clk 0:00:08.1]}
44... Qe3 {[%clk 0:00:31.7]} 45. Qh5+ {[%clk 0:00:07.1]} 45... Bh6 {[%clk
0:00:32]} 46. Qf5 {[%clk 0:00:04.5]} 46... a2 {[%clk 0:00:30.3]} 47. Qf6+ {[%clk
0:00:04.5]} 47... Bg7 {[%clk 0:00:30.4]} 48. Qh4+ {[%clk 0:00:04.8]} 48... Qh6
{[%clk 0:00:30.7]} 49. Qxh6+ {[%clk 0:00:04.6]} 49... Bxh6 {[%clk 0:00:31.6]}
50. Ra1 {[%clk 0:00:05]} 50... c6 {[%clk 0:00:27.6]} 51. bxc6 {[%clk 0:00:05]}
51... bxc6 {[%clk 0:00:28.5]} 52. Bxc6 {[%clk 0:00:05.5]} 52... Re2 {[%clk
0:00:27.3]} 53. Bf3 {[%clk 0:00:04.7]} 53... Rf2 {[%clk 0:00:26.7]} 54. Kg1
{[%clk 0:00:02.6]} 54... Be3 {[%clk 0:00:25.7]} 0-1

[Event "Early-Titled-Tuesday-Blitz-October-24-2023"]
[Site "Chess.com"]
[Date "2023.10.24"]
[Round "11"]
[White "Byniolus"]
[Black "djano"]
[Result "1-0"]
[WhiteElo "2808"]
[BlackElo "2676"]
[TimeControl "180+1"]
[EndTime "10:03:44 PDT"]
[Termination "Byniolus won by resignation"]

1. d4 {[%clk 0:02:44.6]} 1... Nf6 {[%clk 0:02:58.9]} 2. Nf3 {[%clk 0:02:45.2]}
2... g6 {[%clk 0:02:58]} 3. Bf4 {[%clk 0:02:45.5]} 3... Bg7 {[%clk 0:02:58.2]}
4. e3 {[%clk 0:02:46.4]} 4... d6 {[%clk 0:02:57.8]} 5. Be2 {[%clk 0:02:47.3]}
5... c5 {[%clk 0:02:55.9]} 6. c3 {[%clk 0:02:47.4]} 6... Nh5 {[%clk 0:02:50.7]}
7. Bg5 {[%clk 0:02:47.6]} 7... h6 {[%clk 0:02:49.8]} 8. Bh4 {[%clk 0:02:47.9]}
8... g5 {[%clk 0:02:44.5]} 9. Bg3 {[%clk 0:02:47.9]} 9... Nxg3 {[%clk
0:02:35.6]} 10. hxg3 {[%clk 0:02:48.8]} 10... cxd4 {[%clk 0:02:34.8]} 11. cxd4
{[%clk 0:02:48]} 11... Qb6 {[%clk 0:02:34.2]} 12. Qb3 {[%clk 0:02:44.1]} 12...
Nc6 {[%clk 0:02:24]} 13. Qxb6 {[%clk 0:02:42.6]} 13... axb6 {[%clk 0:02:24.1]}
14. Nc3 {[%clk 0:02:43.3]} 14... e5 {[%clk 0:02:16.1]} 15. d5 {[%clk 0:02:34]}
15... Ne7 {[%clk 0:02:01.9]} 16. e4 {[%clk 0:02:24.3]} 16... f5 {[%clk
0:01:54.7]} 17. Nd2 {[%clk 0:02:21.5]} 17... Kf7 {[%clk 0:01:44.3]} 18. Bd3
{[%clk 0:02:16.7]} 18... f4 {[%clk 0:01:41.7]} 19. Nc4 {[%clk 0:02:11]} 19...
Rd8 {[%clk 0:01:30.3]} 20. Nb5 {[%clk 0:02:07.3]} 20... Kg6 {[%clk 0:01:04.7]}
21. Ncxd6 {[%clk 0:01:43.7]} 21... Bd7 {[%clk 0:01:01.2]} 22. Ke2 {[%clk
0:01:22.4]} 22... Bxb5 {[%clk 0:00:49]} 23. Nxb5 {[%clk 0:01:22.4]} 23... Nc8
{[%clk 0:00:39.7]} 24. Nc7 {[%clk 0:01:04.5]} 24... Ra5 {[%clk 0:00:36]} 25. Ne6
{[%clk 0:01:02.1]} 25... Re8 {[%clk 0:00:31.3]} 26. a3 {[%clk 0:00:51.2]} 26...
Nd6 {[%clk 0:00:30.2]} 27. Rac1 {[%clk 0:00:48.6]} 27... Re7 {[%clk 0:00:21.8]}
28. gxf4 {[%clk 0:00:41.4]} 28... gxf4 {[%clk 0:00:19.8]} 29. g3 {[%clk
0:00:38.3]} 29... fxg3 {[%clk 0:00:11.1]} 30. Rcg1 {[%clk 0:00:38.9]} 30... Bf6
{[%clk 0:00:09.5]} 31. Rxg3+ {[%clk 0:00:37.4]} 31... Bg5 {[%clk 0:00:07.4]} 32.
f4 {[%clk 0:00:17.4]} 32... exf4 {[%clk 0:00:07.8]} 33. Nxf4+ {[%clk 0:00:11.2]}
33... Kf7 {[%clk 0:00:06.5]} 34. Ne6 {[%clk 0:00:09.9]} 34... Rxe6 {[%clk
0:00:06.2]} 35. dxe6+ {[%clk 0:00:10.8]} 35... Kxe6 {[%clk 0:00:07.1]} 36. Rf1
{[%clk 0:00:03.6]} 36... Ra4 {[%clk 0:00:07.4]} 37. Kf3 {[%clk 0:00:03.7]} 37...
b5 {[%clk 0:00:07.2]} 38. Rd1 {[%clk 0:00:03.1]} 38... Nf7 {[%clk 0:00:06]} 39.
Bc2 {[%clk 0:00:02.5]} 39... Ne5+ {[%clk 0:00:06.9]} 40. Kg2 {[%clk 0:00:02.7]}
40... Ra5 {[%clk 0:00:06.2]} 41. Bb3+ {[%clk 0:00:03.2]} 41... Ke7 {[%clk
0:00:05.7]} 42. Rd5 {[%clk 0:00:03.9]} 42... Bf4 {[%clk 0:00:05.4]} 43. Rg7+
{[%clk 0:00:02.6]} 43... Kf6 {[%clk 0:00:05.4]} 44. Rxb7 {[%clk 0:00:03.5]}
44... Ra8 {[%clk 0:00:04.6]} 45. Rb6+ {[%clk 0:00:03.7]} 45... Kg5 {[%clk
0:00:04]} 46. Rbxb5 {[%clk 0:00:03.5]} 46... Re8 {[%clk 0:00:03.1]} 47. a4
{[%clk 0:00:03]} 47... Kg4 {[%clk 0:00:03.2]} 48. Bd1+ {[%clk 0:00:02.1]} 48...
Kg5 {[%clk 0:00:03.3]} 49. a5 {[%clk 0:00:02.5]} 49... h5 {[%clk 0:00:03.7]} 50.
a6 {[%clk 0:00:02.9]} 50... h4 {[%clk 0:00:03.9]} 51. a7 {[%clk 0:00:03.5]}
51... h3+ {[%clk 0:00:04.3]} 52. Kxh3 {[%clk 0:00:02.9]} 52... Rh8+ {[%clk
0:00:05.2]} 53. Kg2 {[%clk 0:00:03.5]} 53... Rh2+ {[%clk 0:00:05.7]} 54. Kg1
{[%clk 0:00:03.6]} 54... Kh4 {[%clk 0:00:05.1]} 55. Rxe5 {[%clk 0:00:03.3]}
55... Kg3 {[%clk 0:00:05.6]} 56. Rg5+ {[%clk 0:00:03.2]} 1-0

[Event "Early-Titled-Tuesday-Blitz-October-24-2023"]
[Site "Chess.com"]
[Date "2023.10.24"]
[Round "11"]
[White "Cheer_Down"]
[Black "Felix-Rose"]
[Result "0-1"]
[WhiteElo "2406"]
[BlackElo "2328"]
[TimeControl "180+1"]
[EndTime "10:03:45 PDT"]
[Termination "Felix-Rose won by resignation"]

1. e4 {[%clk 0:02:36.7]} 1... e5 {[%clk 0:02:59.3]} 2. Nf3 {[%clk 0:02:36.1]}
2... Nc6 {[%clk 0:02:59.7]} 3. Bb5 {[%clk 0:02:35.1]} 3... a6 {[%clk 0:02:59.2]}
4. Bxc6 {[%clk 0:02:35.3]} 4... dxc6 {[%clk 0:02:59.5]} 5. Nc3 {[%clk
0:02:35.9]} 5... f6 {[%clk 0:02:57.8]} 6. d4 {[%clk 0:02:35.6]} 6... exd4 {[%clk
0:02:55.7]} 7. Nxd4 {[%clk 0:02:36.5]} 7... Bd6 {[%clk 0:02:52.4]} 8. Be3 {[%clk
0:02:24.1]} 8... Ne7 {[%clk 0:02:52.3]} 9. Qf3 {[%clk 0:02:20.4]} 9... Ng6
{[%clk 0:02:51.6]} 10. Nf5 {[%clk 0:02:20.1]} 10... O-O {[%clk 0:02:39.4]} 11.
O-O-O {[%clk 0:02:19.5]} 11... Ne5 {[%clk 0:02:35.4]} 12. Qe2 {[%clk 0:02:18.8]}
12... Bxf5 {[%clk 0:02:34.4]} 13. exf5 {[%clk 0:02:19.7]} 13... Re8 {[%clk
0:02:33.9]} 14. Rhe1 {[%clk 0:02:09.6]} 14... Qd7 {[%clk 0:02:30.9]} 15. g4
{[%clk 0:02:01.2]} 15... Qf7 {[%clk 0:02:30.9]} 16. b3 {[%clk 0:01:57.6]} 16...
Bb4 {[%clk 0:02:05.9]} 17. Kb2 {[%clk 0:01:51.8]} 17... Qf8 {[%clk 0:01:57.1]}
18. f4 {[%clk 0:01:48.9]} 18... Ba3+ {[%clk 0:01:52.1]} 19. Kb1 {[%clk
0:01:48.6]} 19... Nf7 {[%clk 0:01:51.9]} 20. Qc4 {[%clk 0:01:44.2]} 20... Kh8
{[%clk 0:01:38.2]} 21. Ne4 {[%clk 0:01:39.8]} 21... Nd6 {[%clk 0:01:30.1]} 22.
Nxd6 {[%clk 0:01:39.5]} 22... cxd6 {[%clk 0:01:27.6]} 23. Bc1 {[%clk 0:01:25.5]}
23... d5 {[%clk 0:01:24.9]} 24. Qd3 {[%clk 0:01:18.2]} 24... Bxc1 {[%clk
0:01:23.8]} 25. Rxc1 {[%clk 0:01:18.1]} 25... Qd6 {[%clk 0:01:23.4]} 26. Qf3
{[%clk 0:01:13.9]} 26... a5 {[%clk 0:01:19.2]} 27. g5 {[%clk 0:01:08.6]} 27...
a4 {[%clk 0:01:17.2]} 28. Qh5 {[%clk 0:01:06.8]} 28... Rf8 {[%clk 0:00:51.1]}
29. g6 {[%clk 0:00:55]} 29... h6 {[%clk 0:00:51.1]} 30. Qf3 {[%clk 0:00:55.4]}
30... axb3 {[%clk 0:00:50.9]} 31. cxb3 {[%clk 0:00:55.8]} 31... d4 {[%clk
0:00:40.6]} 32. Re6 {[%clk 0:00:51.7]} 32... Qa3 {[%clk 0:00:38.7]} 33. Qe2
{[%clk 0:00:51.5]} 33... d3 {[%clk 0:00:38.3]} 34. Qd2 {[%clk 0:00:51.1]} 34...
Rfd8 {[%clk 0:00:34.5]} 35. Rce1 {[%clk 0:00:48.8]} 35... b5 {[%clk 0:00:24.2]}
36. Rxc6 {[%clk 0:00:38.3]} 36... b4 {[%clk 0:00:16.3]} 37. Rce6 {[%clk
0:00:34.3]} 37... Rf8 {[%clk 0:00:08]} 38. R6e3 {[%clk 0:00:29.9]} 38... Qa5
{[%clk 0:00:08.2]} 39. Rxd3 {[%clk 0:00:16.1]} 39... Qxf5 {[%clk 0:00:08.4]} 40.
Kb2 {[%clk 0:00:15]} 40... Qxg6 {[%clk 0:00:08.7]} 41. Re2 {[%clk 0:00:12.9]}
41... f5 {[%clk 0:00:09.1]} 42. Rg2 {[%clk 0:00:12.9]} 42... Qf6+ {[%clk
0:00:09.5]} 43. Kb1 {[%clk 0:00:13.4]} 43... Rfe8 {[%clk 0:00:09.3]} 44. Rd7
{[%clk 0:00:13]} 44... Re7 {[%clk 0:00:08.4]} 45. Rxe7 {[%clk 0:00:11]} 45...
Qxe7 {[%clk 0:00:09.3]} 46. Qb2 {[%clk 0:00:10.2]} 46... Re8 {[%clk 0:00:09.2]}
47. Rd2 {[%clk 0:00:08.1]} 47... Qe1+ {[%clk 0:00:09.4]} 48. Qc1 {[%clk
0:00:08.8]} 48... Qe4+ {[%clk 0:00:09.7]} 49. Qc2 {[%clk 0:00:08.7]} 49... Qxf4
{[%clk 0:00:10.2]} 50. Rf2 {[%clk 0:00:08.4]} 50... Re1+ {[%clk 0:00:10.4]} 51.
Kb2 {[%clk 0:00:08.4]} 51... Qd4+ {[%clk 0:00:10.8]} 0-1